bitfinex-derivatives/quotes_BTCF0:USTF0_20251023
["timestamp","ask_amount","ask_price","bid_price","bid_amount"]
[1761213096026,0.53373015,109460.0,109450.0,0.59805757]
[1761213097629,0.44237995,109460.0,109450.0,0.60474757]
[1761213097828,0.40437,109460.0,109450.0,0.63763438]
[1761213098225,0.44732995,109470.0,109450.0,1.03763438]
[1761213098429,0.0048,109470.0,109460.0,0.63608927]
[1761213098625,0.0048,109470.0,109460.0,1.02365264]
[1761213098832,0.0048,109470.0,109460.0,1.42365264]
[1761213099330,0.0048,109470.0,109460.0,1.37431207]
[1761213099529,0.0048,109470.0,109460.0,1.42365264]
[1761213099732,0.53343775,109490.0,109480.0,0.1126614]
[1761213100030,0.53343775,109490.0,109480.0,0.89396826]
[1761213100229,0.5087678,109490.0,109480.0,0.89396826]
[1761213100631,0.5087678,109490.0,109480.0,0.89396856]
[1761213104033,0.5087678,109490.0,109480.0,0.73396856]
[1761213104730,0.5087678,109490.0,109480.0,0.61313291]
[1761213104935,0.41744,109490.0,109480.0,0.95313291]
[1761213105130,0.38336,109490.0,109480.0,0.95313291]
[1761213105434,0.40437,109490.0,109480.0,0.95313291]
[1761213105840,0.4956933,109490.0,109480.0,0.95313291]
[1761213106029,0.5087633,109490.0,109480.0,0.95313291]
[1761213106339,0.5087633,109490.0,109480.0,0.73313291]
[1761213106838,0.5087633,109490.0,109480.0,0.87313291]
[1761213111545,0.5087633,109490.0,109480.0,0.05235435]
[1761213111847,0.9087633,109490.0,109480.0,0.32980435]
[1761213112146,1.05761016,109490.0,109480.0,0.00916435]
[1761213112343,0.1044118,109470.0,109460.0,0.28338056]
[1761213112544,0.5087818,109470.0,109460.0,0.2545337]
[1761213112744,0.5087818,109470.0,109460.0,0.02133]
[1761213113048,0.5087818,109470.0,109450.0,0.64471826]
[1761213113049,0.1500792,109460.0,109450.0,0.64471826]
[1761213113241,0.05873,109460.0,109450.0,1.26453656]
[1761213113435,0.1500792,109460.0,109450.0,2.76453656]
[1761213113838,0.5108792,109460.0,109450.0,0.1028583]
[1761213114151,0.5108792,109460.0,109450.0,0.94386256]
[1761213114340,0.1500792,109460.0,109450.0,0.93386256]
[1761213114535,0.05873,109460.0,109450.0,0.93386256]
[1761213114935,0.5108793,109460.0,109450.0,0.93386256]
[1761213116041,0.5108793,109460.0,109450.0,0.84250516]
[1761213116243,0.9108793,109460.0,109440.0,1.67345029]
[1761213116441,0.5108876,109450.0,109440.0,0.12186]
[1761213116641,0.5108876,109450.0,109440.0,0.4427]
[1761213116847,0.5108876,109450.0,109440.0,0.46456]
[1761213117049,0.5108876,109450.0,109440.0,0.61340686]
[1761213118343,0.5108876,109450.0,109440.0,0.62250503]
[1761213119085,0.5108876,109450.0,109440.0,0.47365817]
[1761213119249,0.5108876,109450.0,109440.0,0.42365817]
[1761213120148,0.5108876,109450.0,109440.0,0.37365817]
[1761213120343,0.5108876,109450.0,109440.0,0.63250503]
[1761213121253,0.5108876,109450.0,109440.0,0.52250503]
[1761213121645,0.5108876,109450.0,109440.0,0.56250503]
[1761213122545,0.5108876,109450.0,109440.0,0.57571663]
[1761213123049,0.5108876,109450.0,109440.0,0.53571663]
[1761213124358,0.5108876,109450.0,109440.0,0.62708233]
[1761213125855,0.5108876,109450.0,109440.0,0.53571663]
[1761213126455,0.9108876,109450.0,109440.0,0.38686977]
[1761213126750,0.5108876,109450.0,109440.0,0.38686977]
[1761213127952,1.05973446,109450.0,109440.0,0.0132116]
[1761213128348,0.9108876,109450.0,109440.0,0.0132116]
[1761213128757,1.0597546,109450.0,109440.0,0.1620786]
[1761213128957,1.0597546,109450.0,109440.0,0.0132116]
[1761213130847,1.08442455,109450.0,109440.0,0.0084116]
[1761213131048,1.11442455,109450.0,109440.0,0.0084116]
[1761213131448,1.11442455,109450.0,109420.0,0.47455634]
[1761213131449,0.1501036,109430.0,109420.0,0.47455634]
[1761213131650,0.1501036,109430.0,109420.0,0.32568934]
[1761213131651,0.6597706,109430.0,109420.0,0.32568934]
[1761213131849,0.6597706,109430.0,109420.0,0.00456934]
[1761213132259,1.4205706,109430.0,109420.0,0.00456934]
[1761213134751,1.4215706,109430.0,109420.0,0.00456934]
[1761213137062,1.0215706,109430.0,109420.0,0.00456934]
[1761213138063,1.0215706,109430.0,109420.0,0.19715634]
[1761213138261,0.8727036,109430.0,109420.0,0.34602334]
[1761213138459,0.8727036,109430.0,109420.0,0.19715634]
[1761213138653,0.8727036,109430.0,109420.0,0.04828934]
[1761213138961,1.0215706,109430.0,109420.0,0.19715634]
[1761213140867,0.8727036,109430.0,109420.0,0.19715634]
[1761213141068,0.1511036,109430.0,109420.0,0.43740504]
[1761213141260,0.1511036,109430.0,109420.0,0.93740504]
[1761213142163,0.1511036,109430.0,109420.0,1.11740504]
[1761213142862,0.1511036,109430.0,109420.0,1.63455204]
[1761213142863,0.0923736,109430.0,109420.0,1.63455204]
[1761213143064,0.001,109430.0,109420.0,1.48568504]
[1761213143364,0.04358,109430.0,109420.0,1.48568504]
[1761213143567,0.04358,109430.0,109420.0,1.51028847]
[1761213144366,0.04458,109430.0,109420.0,1.51028847]
[1761213144572,0.002,109430.0,109420.0,1.69204228]
[1761213145065,0.001,109430.0,109420.0,1.69204228]
[1761213145269,0.02206,109430.0,109420.0,1.69204228]
[1761213145468,0.04358,109430.0,109420.0,1.54317528]
[1761213145970,0.1349534,109430.0,109420.0,1.54317528]
[1761213147071,0.04358,109430.0,109420.0,1.54317528]
[1761213148971,0.1349536,109430.0,109420.0,1.54317528]
[1761213149171,0.1479036,109430.0,109420.0,1.53569528]
[1761213149572,0.04358,109430.0,109420.0,1.53569528]
[1761213152076,0.1349536,109430.0,109420.0,1.53569528]
[1761213152277,0.1479036,109430.0,109420.0,1.53569528]
[1761213152475,0.1479036,109430.0,109420.0,1.54888776]
[1761213154181,0.1479036,109430.0,109420.0,1.18808776]
[1761213154382,0.1479036,109430.0,109420.0,1.54888776]
[1761213154679,0.1479036,109430.0,109420.0,1.52428433]
[1761213155480,0.1479036,109430.0,109420.0,1.16348433]
[1761213155685,0.1479036,109430.0,109420.0,1.1880932]
[1761213156280,0.1479036,109430.0,109420.0,1.48476433]
[1761213158286,0.02206,109430.0,109420.0,1.84556433]
[1761213159190,0.001,109430.0,109420.0,2.0437719]
[1761213159378,0.001,109430.0,109420.0,1.8949049]
[1761213159684,0.001,109430.0,109420.0,2.0437719]
[1761213160889,0.02206,109430.0,109420.0,1.8949049]
[1761213161088,0.04358,109430.0,109420.0,1.8949049]
[1761213162588,0.02206,109430.0,109420.0,1.8949049]
[1761213162786,0.001,109430.0,109420.0,1.8949049]
[1761213163091,0.5086696,109450.0,109440.0,0.1350853]
[1761213163283,0.5086696,109450.0,109440.0,1.16207576]
[1761213164088,0.5086696,109450.0,109440.0,1.15459576]
[1761213164280,0.5096696,109450.0,109440.0,1.15459576]
[1761213165286,0.5106696,109450.0,109440.0,1.15459576]
[1761213165691,0.5106696,109450.0,109440.0,1.12178206]
[1761213166187,0.5096696,109450.0,109440.0,1.15459576]
[1761213166888,0.5096696,109450.0,109440.0,1.12178206]
[1761213167281,0.5096696,109450.0,109440.0,1.15459576]
[1761213167688,0.1488696,109450.0,109440.0,1.15459576]
[1761213167889,0.5096696,109450.0,109440.0,1.15459576]
[1761213169590,0.5096696,109450.0,109440.0,1.15459546]
[1761213170996,0.5096696,109450.0,109440.0,1.12998518]
[1761213172490,0.5096696,109450.0,109440.0,0.79998518]
[1761213172689,0.5096696,109450.0,109440.0,0.69438339]
[1761213173201,0.5096696,109450.0,109440.0,0.84325039]
[1761213173596,0.53433955,109450.0,109440.0,0.66156969]
[1761213173790,0.53433955,109450.0,109440.0,0.75293489]
[1761213176097,0.53433955,109450.0,109440.0,0.90180189]
[1761213177700,0.53433955,109450.0,109440.0,1.11180189]
[1761213178299,0.53433955,109450.0,109440.0,0.89180189]
[1761213178599,0.53433955,109450.0,109440.0,0.86717168]
[1761213180503,0.53433955,109450.0,109440.0,1.08717168]
[1761213183602,0.5096696,109450.0,109440.0,1.11180189]
[1761213187211,0.5096696,109450.0,109440.0,1.14461559]
[1761213187706,0.5096696,109450.0,109440.0,1.14461569]
[1761213187916,1.0585366,109450.0,109440.0,0.58422339]
[1761213188119,1.0585366,109450.0,109440.0,0.55140969]
[1761213188120,0.9096696,109450.0,109440.0,0.55140969]
[1761213188320,0.93433955,109450.0,109440.0,0.55140969]
[1761213188712,0.93433955,109450.0,109440.0,0.40250269]
[1761213188912,0.93433955,109450.0,109440.0,0.49386809]
[1761213189426,0.93433955,109450.0,109440.0,0.64271327]
[1761213190522,0.93433955,109450.0,109440.0,0.67552697]
[1761213190826,0.93433955,109450.0,109440.0,0.96552697]
[1761213192225,0.93433955,109450.0,109440.0,0.67552697]
[1761213197031,0.53433955,109450.0,109440.0,0.67552697]
[1761213198229,0.53433955,109450.0,109440.0,0.65089676]
[1761213198430,0.53433955,109450.0,109440.0,0.75089676]
[1761213199530,0.53433955,109450.0,109440.0,0.65089676]
[1761213201032,0.53433955,109450.0,109440.0,0.50205158]
[1761213201232,0.53433955,109450.0,109440.0,0.58418568]
[1761213202631,0.53433955,109450.0,109440.0,0.67555088]
[1761213204334,0.53433955,109450.0,109440.0,0.1143805]
[1761213204635,0.96710847,109450.0,109440.0,0.3587668]
[1761213206336,0.96710847,109450.0,109440.0,0.3806268]
[1761213206531,1.30323852,109450.0,109440.0,0.0597068]
[1761213206735,1.32790793,109450.0,109440.0,0.0597068]
[1761213209038,1.32790793,109450.0,109440.0,0.0815668]
[1761213209539,1.30323852,109450.0,109440.0,0.05691248]
[1761213210338,1.32790067,109450.0,109440.0,0.05691248]
[1761213210938,1.32790067,109450.0,109440.0,0.01319248]
[1761213211134,1.32789933,109450.0,109440.0,0.01319248]
[1761213214143,1.32789933,109450.0,109440.0,0.03505248]
[1761213214644,1.32789933,109450.0,109440.0,0.05691248]
[1761213215846,1.29513041,109450.0,109440.0,0.23041198]
[1761213217641,0.93433041,109450.0,109440.0,0.32177748]
[1761213217846,0.93433041,109450.0,109440.0,0.0815668]
[1761213218047,0.93433041,109450.0,109440.0,0.23041198]
[1761213219445,0.93433041,109450.0,109440.0,0.32177738]
[1761213222944,0.93433041,109450.0,109440.0,0.23041198]
[1761213223150,0.93433041,109450.0,109440.0,0.20855198]
[1761213223549,0.94243852,109450.0,109440.0,0.20855198]
[1761213223949,0.94243852,109450.0,109440.0,0.23041198]
[1761213224650,0.94243852,109450.0,109440.0,0.32177738]
[1761213225648,0.94243852,109450.0,109440.0,0.29712306]
[1761213227040,0.54243852,109450.0,109440.0,0.29712306]
[1761213227347,0.56709997,109450.0,109440.0,0.61177738]
[1761213229154,0.53433105,109450.0,109440.0,0.61177738]
[1761213231344,0.53433105,109450.0,109440.0,0.76062256]
[1761213231750,0.53433105,109450.0,109440.0,0.61177738]
[1761213233564,0.5096696,109450.0,109440.0,0.64459108]
[1761213239070,0.5096696,109450.0,109440.0,1.19343626]
[1761213239568,0.5096696,109450.0,109440.0,1.04459108]
[1761213243569,0.5096696,109450.0,109440.0,1.19343626]
[1761213245671,0.5096696,109450.0,109440.0,1.16878194]
[1761213246769,0.5096696,109450.0,109440.0,0.76878194]
[1761213248775,0.5096696,109450.0,109440.0,0.61993636]
[1761213249072,0.5096696,109450.0,109440.0,0.43993636]
[1761213249270,0.5096696,109450.0,109440.0,0.43995932]
[1761213249968,0.5096696,109450.0,109440.0,0.32995932]
[1761213250173,0.5096696,109450.0,109440.0,0.61995932]
[1761213250676,0.5096696,109450.0,109440.0,0.76875866]
[1761213255873,0.41831,109450.0,109440.0,0.76875866]
[1761213256176,0.001,109450.0,109440.0,1.34146778]
[1761213256587,0.04481,109450.0,109440.0,1.34146778]
[1761213256977,0.02285,109450.0,109440.0,1.34146778]
[1761213257280,0.001,109450.0,109440.0,0.94146778]
[1761213257669,0.02285,109450.0,109440.0,0.94146778]
[1761213257986,0.001,109450.0,109440.0,0.94146778]
[1761213258176,0.001,109450.0,109440.0,1.30226778]
[1761213258688,0.001,109450.0,109440.0,1.70226778]
[1761213258889,0.001,109450.0,109440.0,1.71876958]
[1761213259090,0.53356215,109470.0,109460.0,0.1343383]
[1761213259280,0.53356215,109470.0,109460.0,0.90055054]
[1761213259477,0.53356215,109470.0,109460.0,0.79055054]
[1761213260085,0.53356215,109470.0,109460.0,0.79054994]
[1761213260586,0.53456215,109470.0,109460.0,0.79054994]
[1761213260786,0.53456215,109470.0,109460.0,0.92054994]
[1761213261684,0.5099007,109470.0,109460.0,0.92054994]
[1761213261993,0.5099007,109470.0,109460.0,0.95339298]
[1761213262896,0.5099007,109470.0,109460.0,0.96268977]
[1761213263382,0.5099007,109470.0,109460.0,0.92984673]
[1761213270388,0.5099007,109470.0,109460.0,1.10984673]
[1761213273296,0.5099007,109470.0,109460.0,0.90984673]
[1761213273490,0.5099007,109470.0,109460.0,0.88521445]
[1761213273894,0.5099007,109470.0,109460.0,1.03521445]
[1761213275296,0.1491007,109470.0,109460.0,1.03521445]
[1761213275496,0.5099007,109470.0,109460.0,1.03521445]
[1761213278697,0.5099007,109470.0,109460.0,1.18403671]
[1761213278900,0.5099007,109470.0,109460.0,1.03521445]
[1761213281403,0.53456215,109470.0,109460.0,1.03521445]
[1761213281599,0.06947145,109470.0,109460.0,1.18403671]
[1761213281795,0.04481,109470.0,109460.0,1.20866899]
[1761213281997,0.001,109470.0,109460.0,2.00231203]
[1761213283194,0.001,109470.0,109460.0,1.97767975]
[1761213283596,0.001,109470.0,109460.0,1.99410127]
[1761213287501,0.1496105,109470.0,109460.0,1.99410127]
[1761213289404,0.001,109470.0,109460.0,1.99410127]
[1761213289906,0.04539,109470.0,109460.0,1.99410127]
[1761213290404,0.05827,109470.0,109460.0,1.99410127]
[1761213290705,0.1496103,109470.0,109460.0,1.44527901]
[1761213290905,0.5104103,109470.0,109460.0,1.11729017]
[1761213292309,0.05827,109470.0,109460.0,1.08447901]
[1761213292799,0.1496101,109470.0,109460.0,1.08447901]
[1761213299005,0.1496101,109470.0,109460.0,1.23287901]
[1761213300610,0.1496101,109470.0,109460.0,1.01435592]
[1761213300811,0.1496101,109470.0,109460.0,1.30570452]
[1761213304016,0.5104101,109470.0,109460.0,0.7267114]
[1761213304215,0.5104101,109470.0,109460.0,1.02435592]
[1761213304915,0.5104101,109470.0,109460.0,1.11570492]
[1761213305212,0.5104101,109470.0,109460.0,0.96730492]
[1761213305717,0.5104101,109470.0,109460.0,1.15730492]
[1761213308121,0.1496101,109470.0,109460.0,1.15730492]
[1761213312729,0.1496101,109470.0,109460.0,1.00840403]
[1761213313625,0.17422887,109470.0,109460.0,0.98376601]
[1761213314621,0.1496101,109470.0,109460.0,0.98376601]
[1761213314920,0.001,109470.0,109460.0,1.13250964]
[1761213315128,0.001,109470.0,109460.0,1.15714766]
[1761213318326,0.001,109470.0,109460.0,1.91794766]
[1761213318528,0.001,109470.0,109460.0,1.88512245]
[1761213318928,0.56729249,109490.0,109480.0,0.1344521]
[1761213319229,0.53452357,109490.0,109480.0,0.8916343]
[1761213319729,0.38541877,109490.0,109480.0,0.8991143]
[1761213319931,0.47674267,109490.0,109480.0,0.8991143]
[1761213321031,0.49936267,109490.0,109480.0,0.8991143]
[1761213321633,0.38541877,109490.0,109480.0,0.8991143]
[1761213321934,0.3608,109490.0,109480.0,0.8991143]
[1761213322140,0.3608,109490.0,109480.0,1.0475143]
[1761213323336,1.1084962,109490.0,109480.0,0.01321484]
[1761213323526,1.31315139,109490.0,109480.0,0.01321484]
[1761213324126,1.28031257,109490.0,109480.0,0.01321484]
[1761213324330,1.31315079,109490.0,109480.0,0.01321484]
[1761213332849,1.67395079,109490.0,109480.0,0.01321484]
[1761213333551,1.64111257,109490.0,109480.0,0.01321484]
[1761213338257,1.67394232,109490.0,109480.0,0.01321484]
[1761213339363,1.68325149,109490.0,109480.0,0.01321484]
[1761213340958,1.67394232,109490.0,109480.0,0.01321484]
[1761213348765,1.64111257,109490.0,109480.0,0.01321484]
[1761213350066,1.64111257,109490.0,109480.0,0.03446484]
[1761213350564,1.64111257,109490.0,109480.0,0.01321484]
[1761213353064,1.65754056,109490.0,109480.0,0.01321484]
[1761213354069,0.93594056,109490.0,109480.0,0.01321484]
[1761213354267,1.65754056,109490.0,109480.0,0.01321484]
[1761213356573,1.65754056,109490.0,109480.0,0.05674484]
[1761213356772,1.65754056,109490.0,109480.0,0.01321484]
[1761213361368,1.25754056,109490.0,109480.0,0.01321484]
[1761213361578,0.1045318,109470.0,109460.0,0.02462373]
[1761213361777,0.1500385,109450.0,109440.0,0.06818373]
[1761213362076,0.54374271,109450.0,109440.0,0.06818373]
[1761213362267,0.53548366,109450.0,109440.0,0.19230363]
[1761213362571,0.53548366,109450.0,109440.0,0.20129632]
[1761213363671,0.56838787,109450.0,109440.0,0.20129632]
[1761213364164,0.53548366,109450.0,109440.0,0.02167]
[1761213364380,0.150046,109440.0,109430.0,0.51314363]
[1761213364569,0.510846,109440.0,109430.0,0.51314363]
[1761213368370,0.510846,109440.0,109430.0,0.52226848]
[1761213373778,0.510846,109440.0,109430.0,0.53544546]
[1761213374681,0.510846,109440.0,109430.0,0.53554758]
[1761213380177,0.510846,109440.0,109430.0,0.56017131]
[1761213380377,0.510846,109440.0,109430.0,0.53554758]
[1761213383281,0.510846,109440.0,109430.0,0.56017131]
[1761213385782,0.510846,109440.0,109430.0,0.54699433]
[1761213385983,0.510846,109440.0,109430.0,0.56017709]
[1761213388087,0.510846,109440.0,109430.0,0.59300873]
[1761213391190,0.510846,109440.0,109430.0,0.61764956]
[1761213392490,0.510846,109440.0,109430.0,0.6044668]
[1761213393592,0.42660142,109470.0,109460.0,0.1051388]
[1761213393781,0.42660142,109470.0,109460.0,0.91764605]
[1761213393782,0.04411,109470.0,109460.0,0.91764605]
[1761213393979,0.4962477,109480.0,109470.0,0.059]
[1761213394192,0.4962477,109480.0,109470.0,0.38124022]
[1761213394390,0.4962477,109480.0,109470.0,0.23239447]
[1761213394787,0.4962477,109480.0,109470.0,0.35651918]
[1761213395089,0.4962477,109480.0,109470.0,0.32373497]
[1761213395484,0.4962477,109480.0,109470.0,0.33288837]
[1761213397794,0.4962477,109480.0,109470.0,0.30833965]
[1761213398795,0.4962477,109480.0,109470.0,0.4571854]
[1761213400100,0.4962477,109480.0,109470.0,0.30833965]
[1761213401096,0.38354,109490.0,109480.0,0.1503321]
[1761213401397,0.3608,109490.0,109480.0,0.94249807]
[1761213401699,0.4521201,109500.0,109490.0,0.1503238]
[1761213401700,0.40491,109500.0,109490.0,0.1503238]
[1761213401891,0.40491,109500.0,109490.0,0.4480153]
[1761213402596,0.3608,109500.0,109490.0,0.4480153]
[1761213403192,0.3608,109500.0,109490.0,0.99686105]
[1761213403399,0.38834,109510.0,109500.0,0.1503154]
[1761213403599,0.40971,109510.0,109500.0,0.7693669]
[1761213403997,0.38354,109530.0,109520.0,0.1050888]
[1761213404197,0.40491,109530.0,109520.0,0.91819605]
[1761213404501,0.40491,109530.0,109520.0,0.7693503]
[1761213406496,0.40491,109530.0,109520.0,0.4716588]
[1761213406697,0.40491,109530.0,109520.0,0.7693503]
[1761213411206,0.4962001,109530.0,109520.0,0.7693503]
[1761213414610,0.4962001,109530.0,109520.0,0.3566915]
[1761213414611,0.5093801,109530.0,109520.0,0.3566915]
[1761213414809,1.05822585,109530.0,109520.0,0.51529575]
[1761213415011,0.9093801,109530.0,109520.0,0.51529575]
[1761213418614,0.9093801,109530.0,109520.0,0.60659445]
[1761213419010,0.9093801,109530.0,109520.0,0.7554402]
[1761213419313,0.9093801,109530.0,109520.0,0.6641415]
[1761213420312,0.9093801,109530.0,109520.0,0.7554402]
[1761213421013,0.4962001,109530.0,109520.0,0.7683702]
[1761213423008,0.4962001,109530.0,109520.0,0.6770715]
[1761213423213,0.5093801,109530.0,109520.0,0.6770715]
[1761213423512,0.5093801,109530.0,109520.0,0.76837]
[1761213425323,0.4962001,109530.0,109520.0,0.76837]
[1761213430129,0.4962001,109530.0,109520.0,0.79291872]
[1761213431422,0.4962001,109530.0,109520.0,0.82570293]
[1761213431629,0.4962001,109530.0,109520.0,0.79291872]
[1761213432125,0.4962001,109530.0,109520.0,0.82570293]
[1761213432623,0.4748301,109530.0,109520.0,0.82570293]
[1761213432825,0.4748301,109530.0,109520.0,0.97410293]
[1761213433126,0.4974901,109530.0,109520.0,0.97410293]
[1761213433825,0.4974901,109530.0,109520.0,0.94955421]
[1761213435529,0.4969323,109540.0,109530.0,0.1484803]
[1761213435731,0.4969323,109540.0,109530.0,0.50339398]
[1761213436826,0.4969323,109540.0,109530.0,0.35426629]
[1761213440337,0.4969323,109540.0,109530.0,0.36317387]
[1761213440930,0.4969323,109540.0,109530.0,0.27188357]
[1761213441130,0.4969323,109540.0,109530.0,0.36317377]
[1761213443238,0.4969323,109540.0,109530.0,0.33047538]
[1761213443639,0.4969323,109540.0,109530.0,0.36317377]
[1761213449239,0.4969323,109540.0,109530.0,0.21460996]
[1761213449446,0.4969323,109540.0,109530.0,0.27188357]
[1761213449946,0.4969323,109540.0,109530.0,0.36317387]
[1761213450746,0.4969323,109540.0,109530.0,0.27188357]
[1761213451247,0.4969323,109540.0,109530.0,0.36317387]
[1761213451746,0.4969323,109540.0,109530.0,0.27188357]
[1761213452048,0.5082023,109540.0,109530.0,0.22625518]
[1761213452247,0.9082023,109540.0,109530.0,0.03343137]
[1761213452444,0.9082023,109540.0,109530.0,0.02452379]
[1761213452650,0.1496903,109530.0,109520.0,0.57064599]
[1761213452850,0.5104903,109530.0,109520.0,0.583816]
[1761213453752,0.5104903,109530.0,109520.0,0.55111761]
[1761213454050,0.5104903,109530.0,109520.0,0.56005257]
[1761213454246,0.5104903,109530.0,109520.0,0.65135117]
[1761213454444,0.4973103,109530.0,109520.0,0.66477117]
[1761213454943,0.4973103,109530.0,109520.0,0.42490876]
[1761213455248,0.4973103,109530.0,109520.0,0.57347257]
[1761213455953,0.4973103,109530.0,109520.0,0.54894878]
[1761213460260,0.4973103,109530.0,109520.0,0.64024718]
[1761213461959,0.4973103,109530.0,109520.0,0.66477097]
[1761213462962,0.4973103,109530.0,109520.0,0.57347257]
[1761213463258,0.4973103,109530.0,109520.0,0.66477127]
[1761213463451,0.4973103,109530.0,109520.0,0.57347257]
[1761213463657,0.4973103,109530.0,109520.0,0.60617096]
[1761213463857,0.4973103,109530.0,109520.0,0.69746966]
[1761213464061,0.4973103,109530.0,109520.0,0.60617096]
[1761213464463,0.4973103,109530.0,109520.0,0.69746966]
[1761213464658,0.4973103,109530.0,109520.0,0.60617096]
[1761213465461,0.4973103,109530.0,109520.0,0.69746956]
[1761213469767,0.4973103,109530.0,109520.0,0.60617096]
[1761213469968,0.5104903,109530.0,109520.0,0.59275096]
[1761213470261,0.5104903,109530.0,109520.0,0.57958095]
[1761213470464,0.5104903,109530.0,109520.0,0.56005797]
[1761213471066,0.4973103,109530.0,109520.0,0.69747496]
[1761213471467,0.4973103,109530.0,109520.0,0.60617636]
[1761213471968,0.5104903,109530.0,109520.0,0.57348526]
[1761213474364,0.53512195,109530.0,109520.0,0.57348526]
[1761213481367,0.52194195,109530.0,109520.0,0.57348526]
[1761213481873,0.52194195,109530.0,109520.0,0.66478396]
[1761213484675,0.11592195,109530.0,109520.0,0.69748235]
[1761213484871,0.49830715,109540.0,109530.0,0.1039299]
[1761213485078,0.52542945,109550.0,109540.0,0.1492515]
[1761213485272,0.48150945,109550.0,109540.0,0.63167072]
[1761213485578,0.50309945,109550.0,109540.0,0.65620157]
[1761213485872,0.14229945,109550.0,109540.0,0.65620157]
[1761213486078,0.14229945,109550.0,109540.0,0.68889996]
[1761213486079,0.1176678,109550.0,109540.0,0.68889996]
[1761213486978,0.1399978,109550.0,109540.0,0.68889996]
[1761213487179,0.1399978,109550.0,109540.0,0.65620157]
[1761213489377,0.1399978,109550.0,109540.0,0.56492007]
[1761213489586,1.08545326,109550.0,109540.0,0.01317541]
[1761213489776,0.93688945,109550.0,109540.0,0.03605541]
[1761213490082,1.25776945,109550.0,109540.0,0.01317541]
[1761213490283,1.25776945,109550.0,109540.0,0.05850541]
[1761213490578,0.5007978,109550.0,109540.0,0.07114541]
[1761213490784,0.5007978,109550.0,109540.0,0.16242681]
[1761213490980,0.5007978,109550.0,109540.0,0.21970922]
[1761213491583,0.5007978,109550.0,109540.0,0.31099062]
[1761213491979,0.1399978,109550.0,109540.0,0.33552147]
[1761213492285,0.0048,109550.0,109540.0,0.33552147]
[1761213492584,0.02639,109550.0,109540.0,0.33552147]
[1761213492785,0.0048,109550.0,109540.0,0.34368901]
[1761213493187,0.0048,109550.0,109540.0,0.1951252]
[1761213493378,0.495989,109560.0,109550.0,0.1492431]
[1761213493684,0.495989,109560.0,109550.0,0.63214232]
[1761213496089,0.495989,109560.0,109550.0,0.39230541]
[1761213496584,0.495989,109560.0,109550.0,0.54086922]
[1761213496984,0.507449,109560.0,109550.0,0.39230541]
[1761213498688,0.507449,109560.0,109550.0,0.54085625]
[1761213498985,0.65599984,109560.0,109550.0,0.20705625]
[1761213499174,1.08063149,109560.0,109550.0,0.37962541]
[1761213499778,1.08063149,109560.0,109550.0,0.05850541]
[1761213499978,1.08063149,109560.0,109550.0,0.01317541]
[1761213499979,1.58293564,109560.0,109550.0,0.01317541]
[1761213500180,1.4343848,109560.0,109550.0,0.01317541]
[1761213500379,1.4343848,109560.0,109550.0,0.03605541]
[1761213500574,1.45856347,109560.0,109550.0,0.01317541]
[1761213500775,1.40975315,109560.0,109550.0,0.01317541]
[1761213500984,1.40975315,109560.0,109550.0,0.03605541]
[1761213501189,1.40975315,109560.0,109550.0,0.05850541]
[1761213502286,1.40975315,109560.0,109550.0,0.21969625]
[1761213502490,1.4343246,109560.0,109550.0,0.21969625]
[1761213503797,1.40975315,109560.0,109550.0,0.21969625]
[1761213504593,1.40975315,109560.0,109550.0,0.05850541]
[1761213504892,0.54479932,109560.0,109550.0,0.31112935]
[1761213505101,0.52875651,109560.0,109550.0,0.31112935]
[1761213505282,0.52875651,109560.0,109550.0,0.21985625]
[1761213505885,0.52875651,109560.0,109550.0,0.31112935]
[1761213506086,0.52875651,109560.0,109550.0,0.21985625]
[1761213508298,0.52875651,109560.0,109550.0,0.31112955]
[1761213508595,0.52875651,109560.0,109550.0,0.21985625]
[1761213508795,0.54021651,109560.0,109550.0,0.07130541]
[1761213508990,0.68876735,109560.0,109550.0,0.20705625]
[1761213509399,0.68876735,109560.0,109550.0,0.52861625]
[1761213511400,0.68876735,109560.0,109550.0,0.20705625]
[1761213513296,0.73757767,109560.0,109550.0,0.20705625]
[1761213513704,0.68876735,109560.0,109550.0,0.20705625]
[1761213517005,0.54021651,109560.0,109550.0,0.21985625]
[1761213517305,0.68876735,109560.0,109550.0,0.05850541]
[1761213517610,0.73757767,109560.0,109550.0,0.20705625]
[1761213523310,0.88612851,109560.0,109550.0,0.01317541]
[1761213523511,1.253361,109560.0,109550.0,0.01317541]
[1761213523814,1.2903521,109560.0,109550.0,0.01317541]
[1761213526022,1.22455068,109560.0,109550.0,0.01317541]
[1761213527423,1.27379946,109560.0,109550.0,0.01317541]
[1761213529724,1.70379946,109560.0,109550.0,0.01317541]
[1761213532226,1.65455068,109560.0,109550.0,0.01317541]
[1761213533025,0.1341717,109540.0,109530.0,0.52560084]
[1761213533222,0.4949717,109540.0,109530.0,0.53888055]
[1761213534224,0.51958812,109540.0,109530.0,0.53888055]
[1761213539332,0.88038812,109540.0,109530.0,0.53888055]
[1761213539526,1.02893896,109540.0,109530.0,0.53888055]
[1761213539728,1.04020896,109540.0,109530.0,0.52624055]
[1761213540037,1.07303567,109540.0,109530.0,0.52624055]
[1761213541220,1.04841925,109540.0,109530.0,0.37768971]
[1761213541425,1.09765932,109540.0,109530.0,0.52624055]
[1761213542035,1.10695875,109540.0,109530.0,0.52624055]
[1761213542227,1.10695875,109540.0,109530.0,0.20488055]
[1761213542634,1.10695875,109540.0,109530.0,0.05632971]
[1761213543834,1.07413204,109540.0,109530.0,0.05632971]
[1761213544730,1.62268288,109540.0,109530.0,0.01327971]
[1761213544934,1.62268288,109540.0,109530.0,0.00747971]
[1761213545140,1.57344281,109540.0,109530.0,0.00747971]
[1761213545434,1.62265595,109540.0,109530.0,0.00747971]
[1761213545928,1.63924423,109540.0,109530.0,0.00747971]
[1761213546131,2.22924423,109540.0,109530.0,1e-08]
[1761213546838,1.82924423,109540.0,109530.0,1e-08]
[1761213547636,2.22924423,109540.0,109530.0,1e-08]
[1761213555342,2.16344281,109540.0,109530.0,1e-08]
[1761213555943,2.21260912,109540.0,109530.0,1e-08]
[1761213557844,0.145648,109520.0,109510.0,0.19086084]
[1761213558039,1.36150193,109520.0,109510.0,0.19086084]
[1761213558247,1.36150193,109520.0,109510.0,0.04231]
[1761213559849,1.54283022,109520.0,109510.0,0.04231]
[1761213560850,1.39441585,109520.0,109510.0,0.04231]
[1761213561343,1.39441585,109520.0,109510.0,0.02113]
[1761213561549,0.1341964,109510.0,109500.0,0.059676]
[1761213561748,0.4949964,109510.0,109500.0,0.059676]
[1761213561942,0.5063564,109510.0,109500.0,0.059676]
[1761213562144,0.53093949,109510.0,109500.0,0.059676]
[1761213562344,0.5063564,109510.0,109500.0,0.059676]
[1761213563148,0.51957949,109510.0,109500.0,0.059676]
[1761213563443,0.4521064,109510.0,109500.0,0.60836331]
[1761213563643,0.0913063,109510.0,109500.0,0.78151982]
[1761213563852,0.0913063,109510.0,109500.0,0.72414711]
[1761213564051,0.4521063,109510.0,109500.0,0.72414711]